[Event "*** Titled Tuesday 3|2 Blitz"]
[Site "Chess.com"]
[Date "2014.12.30"]
[Round "5"]
[White "hitaman"]
[Black "DARIO555"]
[Result "1-0"]
[WhiteElo "2384"]
[BlackElo "2198"]
[TimeControl "180+2"]
[EndTime "12:05:54 PST"]
[Termination "hitaman won by resignation"]

1. e4 {[%clk 0:03:00]} 1... e5 {[%clk 0:02:58.1]} 2. Nf3 {[%clk 0:02:59.7]} 2...
Nc6 {[%clk 0:02:59.2]} 3. Bb5 {[%clk 0:03:00.5]} 3... a6 {[%clk 0:03:00.5]} 4.
Bxc6 {[%clk 0:03:01.7]} 4... dxc6 {[%clk 0:03:01.3]} 5. O-O {[%clk 0:03:03.6]}
5... f6 {[%clk 0:03:02.7]} 6. d4 {[%clk 0:03:04.5]} 6... Bg4 {[%clk 0:03:03.7]}
7. dxe5 {[%clk 0:03:00]} 7... Qxd1 {[%clk 0:03:04.2]} 8. Rxd1 {[%clk 0:03:01.9]}
8... fxe5 {[%clk 0:03:05.5]} 9. Nbd2 {[%clk 0:03:03.2]} 9... O-O-O {[%clk
0:03:04.3]} 10. Re1 {[%clk 0:03:04.2]} 10... Bd6 {[%clk 0:02:59.5]} 11. h3
{[%clk 0:03:04.8]} 11... Bd7 {[%clk 0:02:45.5]} 12. b3 {[%clk 0:02:50.7]} 12...
Ne7 {[%clk 0:02:41.1]} 13. Bb2 {[%clk 0:02:50.2]} 13... Ng6 {[%clk 0:02:42.2]}
14. Nc4 {[%clk 0:02:50.5]} 14... Rhe8 {[%clk 0:02:19.3]} 15. Ng5 {[%clk
0:02:47]} 15... Re7 {[%clk 0:02:01.6]} 16. Nxh7 {[%clk 0:02:25.3]} 16... b5
{[%clk 0:01:52.7]} 17. Nxd6+ {[%clk 0:02:21.7]} 17... cxd6 {[%clk 0:01:53.7]}
18. Rad1 {[%clk 0:02:20.3]} 18... Kc7 {[%clk 0:01:52.1]} 19. Ng5 {[%clk
0:02:17.7]} 19... Nf4 {[%clk 0:01:48.8]} 20. Bc1 {[%clk 0:02:14]} 20... Rf8
{[%clk 0:01:43.9]} 21. Bxf4 {[%clk 0:02:09.7]} 21... Rxf4 {[%clk 0:01:43.5]} 22.
g3 {[%clk 0:02:09.7]} 22... Rf6 {[%clk 0:01:43.2]} 23. Rd2 {[%clk 0:02:07.3]}
23... Be6 {[%clk 0:01:30.5]} 24. Nxe6+ {[%clk 0:02:07.4]} 24... Rexe6 {[%clk
0:01:31.1]} 25. Kg2 {[%clk 0:02:07.7]} 25... c5 {[%clk 0:01:27.1]} 26. h4 {[%clk
0:02:06.2]} 26... Kb6 {[%clk 0:01:27.9]} 27. Red1 {[%clk 0:02:05.3]} 27... Ka5
{[%clk 0:01:28]} 28. a3 {[%clk 0:02:05]} 28... Kb6 {[%clk 0:01:22]} 29. g4
{[%clk 0:02:06.1]} 29... Kc6 {[%clk 0:01:21.5]} 30. f3 {[%clk 0:02:07.1]} 30...
a5 {[%clk 0:01:18.1]} 31. Kg3 {[%clk 0:02:06.4]} 31... Rf8 {[%clk 0:01:18.8]}
32. h5 {[%clk 0:02:07.1]} 32... Ref6 {[%clk 0:01:14.9]} 33. Rd3 {[%clk
0:02:07.8]} 33... Ra8 {[%clk 0:01:08.3]} 34. g5 {[%clk 0:01:41.6]} 34... Re6
{[%clk 0:01:09]} 35. a4 {[%clk 0:01:36.7]} 35... bxa4 {[%clk 0:01:07.8]} 36.
bxa4 {[%clk 0:01:38.6]} 36... Rb8 {[%clk 0:01:08.1]} 37. c3 {[%clk 0:01:35.5]}
37... c4 {[%clk 0:01:03.9]} 38. Rd5 {[%clk 0:01:35.4]} 38... Ra8 {[%clk
0:00:59.8]} 39. Rb1 {[%clk 0:01:32.6]} 39... Ra7 {[%clk 0:00:58.5]} 40. Rdb5
{[%clk 0:01:32.7]} 40... Kc7 {[%clk 0:00:55.4]} 41. Kg4 {[%clk 0:01:32.1]} 41...
Kc6 {[%clk 0:00:49.7]} 42. Rb6+ {[%clk 0:01:32.8]} 42... Kc7 {[%clk 0:00:48.8]}
43. Rb8 {[%clk 0:01:34]} 43... Kc6 {[%clk 0:00:44.4]} 44. Rc8+ {[%clk
0:01:32.8]} 44... Kd7 {[%clk 0:00:43.9]} 45. Rg8 {[%clk 0:01:33.7]} 45... Kc6
{[%clk 0:00:44.6]} 46. Rbb8 {[%clk 0:01:34.4]} 46... Rc7 {[%clk 0:00:22.5]} 47.
Rgc8 {[%clk 0:01:33.4]} 47... Re7 {[%clk 0:00:23]} 48. Rxc7+ {[%clk 0:01:33.9]}
48... Rxc7 {[%clk 0:00:24.1]} 49. g6 {[%clk 0:01:34.8]} 49... d5 {[%clk
0:00:24.8]} 50. exd5+ {[%clk 0:01:35.1]} 50... Kxd5 {[%clk 0:00:26.1]} 51. Rb5+
{[%clk 0:01:37]} 51... Ke6 {[%clk 0:00:25.6]} 52. Rb6+ {[%clk 0:01:37.4]} 52...
Kd5 {[%clk 0:00:26.2]} 53. h6 {[%clk 0:01:38.7]} 53... gxh6 {[%clk 0:00:26.7]}
54. Kh5 {[%clk 0:01:40]} 54... e4 {[%clk 0:00:27.3]} 55. Rb5+ {[%clk 0:01:40.2]}
55... Ke6 {[%clk 0:00:26.6]} 56. fxe4 {[%clk 0:01:41.5]} 56... Kf6 {[%clk
0:00:26.7]} 57. Kxh6 {[%clk 0:01:37.6]} 57... Re7 {[%clk 0:00:26.4]} 58. Rf5+
{[%clk 0:01:38]} 58... Ke6 {[%clk 0:00:27.2]} 59. g7 {[%clk 0:01:39]} 59... Re8
{[%clk 0:00:25.7]} 60. Kh7 {[%clk 0:01:37.8]} 60... Rh8+ {[%clk 0:00:24.5]} 1-0

[Event "*** Titled Tuesday 3|2 Blitz"]
[Site "Chess.com"]
[Date "2014.12.30"]
[Round "5"]
[White "rhungaski"]
[Black "LADIESGET2KNOWME"]
[Result "1-0"]
[WhiteElo "2408"]
[BlackElo "2230"]
[TimeControl "180+2"]
[EndTime "12:05:57 PST"]
[Termination "rhungaski won on time"]

1. e4 {[%clk 0:03:00]} 1... e6 {[%clk 0:02:58.7]} 2. d4 {[%clk 0:03:00.9]} 2...
d5 {[%clk 0:03:00.6]} 3. exd5 {[%clk 0:03:02.8]} 3... exd5 {[%clk 0:03:00.1]} 4.
Nf3 {[%clk 0:03:04.7]} 4... Nc6 {[%clk 0:03:00.6]} 5. c3 {[%clk 0:03:02.2]} 5...
Bd6 {[%clk 0:03:01.4]} 6. Bd3 {[%clk 0:03:02.4]} 6... Nge7 {[%clk 0:03:02.8]} 7.
O-O {[%clk 0:02:59.8]} 7... O-O {[%clk 0:03:04.2]} 8. Bg5 {[%clk 0:02:59]} 8...
f6 {[%clk 0:03:04.5]} 9. Bh4 {[%clk 0:02:59.6]} 9... Ng6 {[%clk 0:03:04]} 10.
Bg3 {[%clk 0:03:00.4]} 10... Nce7 {[%clk 0:03:05]} 11. Qc2 {[%clk 0:03:00]}
11... Bg4 {[%clk 0:02:56.3]} 12. Nbd2 {[%clk 0:03:00.2]} 12... Qd7 {[%clk
0:02:56.5]} 13. Rae1 {[%clk 0:02:46.1]} 13... Rae8 {[%clk 0:02:53.3]} 14. h3
{[%clk 0:02:43]} 14... Bxh3 {[%clk 0:02:39.8]} 15. gxh3 {[%clk 0:02:40.8]} 15...
Qxh3 {[%clk 0:02:27]} 16. Re2 {[%clk 0:01:56.1]} 16... f5 {[%clk 0:02:05]} 17.
Rfe1 {[%clk 0:01:40.5]} 17... f4 {[%clk 0:01:43.9]} 18. Bh2 {[%clk 0:01:38.9]}
18... Nh4 {[%clk 0:01:14.3]} 19. Nxh4 {[%clk 0:01:39.3]} 19... Qxh4 {[%clk
0:01:11.9]} 20. f3 {[%clk 0:01:36.2]} 20... Rf6 {[%clk 0:00:40.1]} 21. Re6
{[%clk 0:01:09.8]} 21... Ref8 {[%clk 0:00:30.1]} 22. Nf1 {[%clk 0:00:58]} 22...
Nf5 {[%clk 0:00:14.3]} 23. Rxf6 {[%clk 0:00:48.2]} 23... Rxf6 {[%clk 0:00:15.1]}
24. Re8+ {[%clk 0:00:19.2]} 24... Kf7 {[%clk 0:00:14.8]} 25. Qe2 {[%clk
0:00:14.2]} 25... Ne3 {[%clk 0:00:11.2]} 26. Rb8 {[%clk 0:00:08.9]} 26... Rh6
{[%clk 0:00:06.1]} 27. Nxe3 {[%clk 0:00:06.1]} 27... fxe3 {[%clk 0:00:05.1]} 28.
f4 {[%clk 0:00:07.2]} 28... Bxf4 {[%clk 0:00:04.5]} 29. Rc8 {[%clk 0:00:04.2]}
29... Bxh2+ {[%clk 0:00:04.4]} 30. Kf1 {[%clk 0:00:05.4]} 30... Qh3+ {[%clk
0:00:04.7]} 31. Ke1 {[%clk 0:00:06.6]} 31... Bg3+ {[%clk 0:00:04.8]} 32. Kd1
{[%clk 0:00:07.9]} 32... Qh1+ {[%clk 0:00:06.5]} 33. Kc2 {[%clk 0:00:08.9]}
33... Bf4 {[%clk 0:00:06]} 34. Qg4 {[%clk 0:00:09.1]} 34... Rh2+ {[%clk
0:00:04.8]} 35. Kb3 {[%clk 0:00:10.1]} 35... Bd6 {[%clk 0:00:03.8]} 36. Qf5+
{[%clk 0:00:09.4]} 1-0

[Event "*** Titled Tuesday 3|2 Blitz"]
[Site "Chess.com"]
[Date "2014.12.30"]
[Round "5"]
[White "LuckyTiger"]
[Black "DanielRensch"]
[Result "1-0"]
[WhiteElo "2494"]
[BlackElo "2345"]
[TimeControl "180+2"]
[EndTime "12:06:13 PST"]
[Termination "LuckyTiger won by resignation"]

1. e4 {[%clk 0:03:00]} 1... c5 {[%clk 0:02:57.9]} 2. c3 {[%clk 0:02:59]} 2... d6
{[%clk 0:02:58.5]} 3. d4 {[%clk 0:02:59.7]} 3... Nf6 {[%clk 0:02:59.6]} 4. Bd3
{[%clk 0:03:01]} 4... g6 {[%clk 0:02:59.9]} 5. h3 {[%clk 0:03:00.9]} 5... Qc7
{[%clk 0:02:59.7]} 6. Nf3 {[%clk 0:02:59.4]} 6... Bg7 {[%clk 0:03:00.4]} 7. O-O
{[%clk 0:02:58.5]} 7... O-O {[%clk 0:03:00.9]} 8. Re1 {[%clk 0:02:58.3]} 8...
cxd4 {[%clk 0:02:42.8]} 9. cxd4 {[%clk 0:02:58.4]} 9... e5 {[%clk 0:02:43.8]}
10. d5 {[%clk 0:02:55]} 10... Na6 {[%clk 0:02:41.1]} 11. Nc3 {[%clk 0:02:51.9]}
11... Nc5 {[%clk 0:02:41.3]} 12. Bc2 {[%clk 0:02:52.5]} 12... a5 {[%clk
0:02:42]} 13. Bg5 {[%clk 0:02:37.1]} 13... b6 {[%clk 0:02:40.1]} 14. a3 {[%clk
0:02:35.9]} 14... h6 {[%clk 0:02:15.8]} 15. Be3 {[%clk 0:02:36.5]} 15... Ba6
{[%clk 0:02:09.6]} 16. Rc1 {[%clk 0:02:32.7]} 16... Rfc8 {[%clk 0:02:06]} 17. b4
{[%clk 0:02:18.2]} 17... Ncd7 {[%clk 0:02:04.8]} 18. Bb1 {[%clk 0:02:00.4]}
18... Qd8 {[%clk 0:01:55.6]} 19. Bd3 {[%clk 0:01:29.9]} 19... Bxd3 {[%clk
0:01:50.3]} 20. Qxd3 {[%clk 0:01:31.8]} 20... axb4 {[%clk 0:01:51.8]} 21. axb4
{[%clk 0:01:33.7]} 21... Ra3 {[%clk 0:01:53]} 22. Nd2 {[%clk 0:01:28.2]} 22...
b5 {[%clk 0:00:55.1]} 23. Rc2 {[%clk 0:00:52]} 23... Nb6 {[%clk 0:00:38.4]} 24.
Qxb5 {[%clk 0:00:35.6]} 24... Nfd7 {[%clk 0:00:20.4]} 25. Rec1 {[%clk
0:00:33.6]} 25... Kh7 {[%clk 0:00:16.8]} 26. Ne2 {[%clk 0:00:24.6]} 26... Rxc2
{[%clk 0:00:16.9]} 27. Rxc2 {[%clk 0:00:26.5]} 27... f5 {[%clk 0:00:17.3]} 28.
Rc3 {[%clk 0:00:18]} 28... Ra1+ {[%clk 0:00:16.3]} 29. Kh2 {[%clk 0:00:19.4]}
29... f4 {[%clk 0:00:17.1]} 30. Bxb6 {[%clk 0:00:20.4]} 30... Nxb6 {[%clk
0:00:18.6]} 31. Rc6 {[%clk 0:00:19.8]} 31... Na4 {[%clk 0:00:16.9]} 32. Ra6
{[%clk 0:00:18.3]} 32... Ra2 {[%clk 0:00:17.1]} 33. Nf3 {[%clk 0:00:15.8]} 33...
Nc3 {[%clk 0:00:07.7]} 34. Nxc3 {[%clk 0:00:16.3]} 34... Rxf2 {[%clk 0:00:09.4]}
35. Ra2 {[%clk 0:00:16.4]} 35... Rxf3 {[%clk 0:00:09.4]} 36. gxf3 {[%clk
0:00:17.3]} 36... Qh4 {[%clk 0:00:10.3]} 37. Qf1 {[%clk 0:00:18.2]} 37... Qg3+
{[%clk 0:00:10.9]} 38. Kh1 {[%clk 0:00:19.5]} 38... Bf6 {[%clk 0:00:11.9]} 39.
b5 {[%clk 0:00:16.9]} 39... Bd8 {[%clk 0:00:11.7]} 40. Ra7+ {[%clk 0:00:17.6]}
40... Kh8 {[%clk 0:00:11.5]} 41. Ra8 {[%clk 0:00:19]} 41... Qh4 {[%clk
0:00:11.7]} 42. b6 {[%clk 0:00:20]} 42... Kg7 {[%clk 0:00:12.6]} 43. Ra7+ {[%clk
0:00:20.7]} 43... Kf6 {[%clk 0:00:13.1]} 44. b7 {[%clk 0:00:20.4]} 44... Bc7
{[%clk 0:00:12.4]} 45. Nb5 {[%clk 0:00:18]} 45... Bb8 {[%clk 0:00:12.6]} 46. Ra8
{[%clk 0:00:19.1]} 1-0

[Event "*** Titled Tuesday 3|2 Blitz"]
[Site "Chess.com"]
[Date "2014.12.30"]
[Round "5"]
[White "GedoGluperd"]
[Black "bugsbunny444"]
[Result "0-1"]
[WhiteElo "2292"]
[BlackElo "2235"]
[TimeControl "180+2"]
[EndTime "12:06:30 PST"]
[Termination "bugsbunny444 won by resignation"]

1. d4 {[%clk 0:03:00]} 1... e6 {[%clk 0:02:55.4]} 2. g3 {[%clk 0:02:59]} 2... d5
{[%clk 0:02:56.1]} 3. Bg2 {[%clk 0:03:00.1]} 3... Nf6 {[%clk 0:02:57.7]} 4. Nf3
{[%clk 0:03:01.4]} 4... b5 {[%clk 0:02:59.3]} 5. a4 {[%clk 0:03:00.6]} 5... b4
{[%clk 0:03:00.4]} 6. c4 {[%clk 0:03:01.8]} 6... bxc3 {[%clk 0:02:58.6]} 7. bxc3
{[%clk 0:03:01.1]} 7... Ba6 {[%clk 0:02:54.4]} 8. O-O {[%clk 0:03:01.2]} 8...
Be7 {[%clk 0:02:52.7]} 9. Nbd2 {[%clk 0:02:59]} 9... O-O {[%clk 0:02:52.5]} 10.
Ba3 {[%clk 0:02:57.6]} 10... Nbd7 {[%clk 0:02:34.6]} 11. Re1 {[%clk 0:02:55.8]}
11... Rb8 {[%clk 0:02:26.7]} 12. e4 {[%clk 0:02:52.4]} 12... dxe4 {[%clk
0:02:27.5]} 13. Nxe4 {[%clk 0:02:51.7]} 13... Nxe4 {[%clk 0:02:25.9]} 14. Rxe4
{[%clk 0:02:51.5]} 14... Bxa3 {[%clk 0:02:23.1]} 15. Rxa3 {[%clk 0:02:51.6]}
15... c5 {[%clk 0:01:58]} 16. Rh4 {[%clk 0:02:49]} 16... Nf6 {[%clk 0:01:24.4]}
17. Ne5 {[%clk 0:02:47.4]} 17... Qd6 {[%clk 0:01:12.1]} 18. Ra1 {[%clk
0:02:15.4]} 18... Rfc8 {[%clk 0:01:03.8]} 19. g4 {[%clk 0:02:10.1]} 19... cxd4
{[%clk 0:01:01.2]} 20. cxd4 {[%clk 0:02:10.2]} 20... h6 {[%clk 0:00:47.2]} 21.
Qd2 {[%clk 0:01:53.8]} 21... Rb4 {[%clk 0:00:33.7]} 22. g5 {[%clk 0:01:46.9]}
22... hxg5 {[%clk 0:00:22.8]} 23. Qxg5 {[%clk 0:01:47]} 23... Bb7 {[%clk
0:00:18.1]} 24. Bxb7 {[%clk 0:01:37.8]} 24... Rxb7 {[%clk 0:00:18.4]} 25. Qg3
{[%clk 0:01:12.1]} 25... Rcb8 {[%clk 0:00:14.3]} 26. Qd3 {[%clk 0:01:09.7]}
26... Rb3 {[%clk 0:00:11.1]} 27. Qc2 {[%clk 0:01:10.4]} 27... Rb2 {[%clk
0:00:08.4]} 28. Qd3 {[%clk 0:01:11.8]} 28... R8b3 {[%clk 0:00:07.9]} 29. Qf1
{[%clk 0:01:12.7]} 29... Qb4 {[%clk 0:00:08.4]} 30. Rc1 {[%clk 0:01:13.4]} 30...
Rb1 {[%clk 0:00:09.1]} 31. Rc8+ {[%clk 0:01:14.1]} 31... Qf8 {[%clk 0:00:06.2]}
32. Rh8+ {[%clk 0:01:08.5]} 32... Kxh8 {[%clk 0:00:07.5]} 33. Rxf8+ {[%clk
0:01:10]} 33... Kh7 {[%clk 0:00:09.1]} 34. Rxf7 {[%clk 0:01:11.3]} 34... Rxf1+
{[%clk 0:00:08.5]} 35. Kxf1 {[%clk 0:01:12.6]} 35... Rb4 {[%clk 0:00:08]} 36.
Rxa7 {[%clk 0:01:06.7]} 36... Rxd4 {[%clk 0:00:09.3]} 37. a5 {[%clk 0:01:08.1]}
37... Ra4 {[%clk 0:00:09.9]} 38. a6 {[%clk 0:01:09.1]} 38... Ra2 {[%clk
0:00:11]} 39. Nd3 {[%clk 0:01:03.6]} 39... Ne4 {[%clk 0:00:08.5]} 40. Kg2 {[%clk
0:01:04.3]} 40... Ra3 {[%clk 0:00:07.5]} 41. Kf3 {[%clk 0:01:04]} 41... Nc5
{[%clk 0:00:06.1]} 42. Ke3 {[%clk 0:00:59.4]} 42... Rxd3+ {[%clk 0:00:06.1]} 43.
Ke2 {[%clk 0:00:59.7]} 43... Ra3 {[%clk 0:00:07.8]} 44. h4 {[%clk 0:00:36.6]}
44... Rxa6 {[%clk 0:00:08.3]} 45. Rc7 {[%clk 0:00:37.7]} 45... Ne4 {[%clk
0:00:08.5]} 46. Ke3 {[%clk 0:00:39.2]} 46... Nf6 {[%clk 0:00:09.5]} 47. f4
{[%clk 0:00:38.7]} 47... Nd5+ {[%clk 0:00:10.9]} 48. Kd4 {[%clk 0:00:38.7]}
48... Nxc7 {[%clk 0:00:12.3]} 49. h5 {[%clk 0:00:40]} 49... Ra5 {[%clk 0:00:13]}
50. h6 {[%clk 0:00:41.4]} 50... Kxh6 {[%clk 0:00:14.1]} 51. f5 {[%clk 0:00:43]}
51... Rxf5 {[%clk 0:00:15.1]} 52. Kc4 {[%clk 0:00:44.7]} 52... g5 {[%clk
0:00:16.5]} 53. Kd4 {[%clk 0:00:46.1]} 53... g4 {[%clk 0:00:18.4]} 54. Kc4
{[%clk 0:00:47.5]} 54... g3 {[%clk 0:00:20.3]} 55. Kd4 {[%clk 0:00:48.9]} 55...
g2 {[%clk 0:00:22.2]} 0-1

[Event "*** Titled Tuesday 3|2 Blitz"]
[Site "Chess.com"]
[Date "2014.12.30"]
[Round "5"]
[White "MattyDPerrine"]
[Black "MikePerelshteyn"]
[Result "1-0"]
[WhiteElo "1999"]
[BlackElo "1926"]
[TimeControl "180+2"]
[EndTime "12:06:47 PST"]
[Termination "MattyDPerrine won by resignation"]

1. d4 {[%clk 0:02:59.3]} 1... c6 {[%clk 0:02:59.3]} 2. c4 {[%clk 0:02:56]} 2...
d6 {[%clk 0:03:00.3]} 3. Nc3 {[%clk 0:02:56.1]} 3... Nf6 {[%clk 0:03:01.6]} 4.
g3 {[%clk 0:02:56.3]} 4... g6 {[%clk 0:03:02.7]} 5. Bg2 {[%clk 0:02:57.7]} 5...
Bg7 {[%clk 0:03:04.1]} 6. Nf3 {[%clk 0:02:59.3]} 6... O-O {[%clk 0:03:05.3]} 7.
O-O {[%clk 0:03:00.2]} 7... Bf5 {[%clk 0:03:06.2]} 8. Nh4 {[%clk 0:02:59.2]}
8... Be6 {[%clk 0:03:06.6]} 9. d5 {[%clk 0:02:59.6]} 9... cxd5 {[%clk
0:03:04.7]} 10. cxd5 {[%clk 0:03:01.5]} 10... Bd7 {[%clk 0:03:05.2]} 11. Nf3
{[%clk 0:02:56.3]} 11... Na6 {[%clk 0:02:57.6]} 12. Nd4 {[%clk 0:02:52.8]} 12...
Rc8 {[%clk 0:02:54.6]} 13. e4 {[%clk 0:02:44.3]} 13... Qb6 {[%clk 0:02:49.7]}
14. Nb3 {[%clk 0:02:35.5]} 14... Ng4 {[%clk 0:02:37.4]} 15. h3 {[%clk
0:02:35.5]} 15... Ne5 {[%clk 0:02:38.1]} 16. Be3 {[%clk 0:02:18.4]} 16... Qd8
{[%clk 0:02:38.3]} 17. Bd4 {[%clk 0:01:53.6]} 17... Nc5 {[%clk 0:02:13.7]} 18.
f4 {[%clk 0:01:30]} 18... Ned3 {[%clk 0:02:14.2]} 19. Bxg7 {[%clk 0:01:19.5]}
19... Kxg7 {[%clk 0:02:14.9]} 20. Nxc5 {[%clk 0:01:20.3]} 20... Nxc5 {[%clk
0:02:15.4]} 21. Qd4+ {[%clk 0:00:49.3]} 21... Kg8 {[%clk 0:02:06.2]} 22. e5
{[%clk 0:00:49.2]} 22... Qb6 {[%clk 0:02:06]} 23. exd6 {[%clk 0:00:49.3]} 23...
exd6 {[%clk 0:02:06.7]} 24. b4 {[%clk 0:00:49.5]} 24... Nd3 {[%clk 0:01:54.3]}
25. Qxb6 {[%clk 0:00:50.3]} 25... axb6 {[%clk 0:01:55.4]} 26. Ne4 {[%clk
0:00:51.9]} 26... Kg7 {[%clk 0:01:41.8]} 27. Nxd6 {[%clk 0:00:52.5]} 27... Rc2
{[%clk 0:01:18.6]} 28. Be4 {[%clk 0:00:47.1]} 28... Rc3 {[%clk 0:01:18.2]} 29.
Rf3 {[%clk 0:00:43.2]} 29... Rc1+ {[%clk 0:00:47.3]} 30. Rxc1 {[%clk 0:00:40.7]}
30... Nxc1 {[%clk 0:00:48.3]} 31. a3 {[%clk 0:00:28.7]} 31... Ne2+ {[%clk
0:00:41.8]} 32. Kf2 {[%clk 0:00:24.9]} 32... Nd4 {[%clk 0:00:42.2]} 33. Rd3
{[%clk 0:00:21.3]} 33... Nb5 {[%clk 0:00:11.1]} 34. Nxb5 {[%clk 0:00:22.5]}
34... Bxb5 {[%clk 0:00:12.3]} 35. Rc3 {[%clk 0:00:24.4]} 35... Rd8 {[%clk
0:00:10]} 36. Ke3 {[%clk 0:00:24.1]} 36... Kf6 {[%clk 0:00:08.8]} 37. Rc7 {[%clk
0:00:22.2]} 37... Rd7 {[%clk 0:00:07.8]} 38. Rxd7 {[%clk 0:00:21.6]} 38... Bxd7
{[%clk 0:00:09.1]} 39. h4 {[%clk 0:00:23.2]} 39... h5 {[%clk 0:00:09.8]} 40. d6
{[%clk 0:00:22]} 40... Ke6 {[%clk 0:00:10.1]} 41. Bxb7 {[%clk 0:00:22.9]} 41...
Kxd6 {[%clk 0:00:11.3]} 42. Kd4 {[%clk 0:00:24.5]} 42... b5 {[%clk 0:00:11.5]}
43. Bd5 {[%clk 0:00:25.3]} 43... f6 {[%clk 0:00:12.4]} 44. Bf7 {[%clk
0:00:25.1]} 44... g5 {[%clk 0:00:08.5]} 45. Bxh5 {[%clk 0:00:25.2]} 45... gxh4
{[%clk 0:00:07.8]} 46. gxh4 {[%clk 0:00:26.1]} 46... Ke7 {[%clk 0:00:08.1]} 47.
Kc5 {[%clk 0:00:26.8]} 47... Kf8 {[%clk 0:00:04.8]} 48. Be2 {[%clk 0:00:27.1]}
48... Kg7 {[%clk 0:00:05.7]} 49. Bxb5 {[%clk 0:00:28.2]} 49... Bg4 {[%clk
0:00:06.7]} 50. Be8 {[%clk 0:00:27.8]} 50... Kf8 {[%clk 0:00:07.1]} 51. Bg6
{[%clk 0:00:27.7]} 51... Kg7 {[%clk 0:00:08.2]} 52. h5 {[%clk 0:00:29.2]} 52...
Kh6 {[%clk 0:00:09.5]} 53. a4 {[%clk 0:00:30.4]} 53... Bxh5 {[%clk 0:00:05.7]}
54. Bxh5 {[%clk 0:00:32.3]} 54... Kxh5 {[%clk 0:00:07.1]} 55. b5 {[%clk
0:00:32.6]} 55... Kg4 {[%clk 0:00:08.6]} 56. b6 {[%clk 0:00:34.5]} 56... Kxf4
{[%clk 0:00:10]} 57. b7 {[%clk 0:00:36.4]} 57... f5 {[%clk 0:00:11.5]} 58. b8=Q+
{[%clk 0:00:38.3]} 58... Kg4 {[%clk 0:00:13]} 59. Qh2 {[%clk 0:00:39.1]} 59...
f4 {[%clk 0:00:13.9]} 60. Qf2 {[%clk 0:00:40.7]} 1-0

[Event "*** Titled Tuesday 3|2 Blitz"]
[Site "Chess.com"]
[Date "2014.12.30"]
[Round "5"]
[White "steinitz_attack"]
[Black "playerzr"]
[Result "0-1"]
[WhiteElo "1733"]
[BlackElo "1870"]
[TimeControl "180+2"]
[EndTime "12:06:52 PST"]
[Termination "playerzr won by resignation"]

1. Nf3 {[%clk 0:03:00]} 1... Nf6 {[%clk 0:02:55.7]} 2. g3 {[%clk 0:03:00.3]}
2... g6 {[%clk 0:02:53.6]} 3. Bg2 {[%clk 0:03:01.9]} 3... Bg7 {[%clk 0:02:50.1]}
4. O-O {[%clk 0:03:03.4]} 4... O-O {[%clk 0:02:49.9]} 5. d4 {[%clk 0:03:05]}
5... c6 {[%clk 0:02:49.8]} 6. c4 {[%clk 0:03:05.7]} 6... d5 {[%clk 0:02:50.5]}
7. cxd5 {[%clk 0:03:02.6]} 7... cxd5 {[%clk 0:02:50.8]} 8. e3 {[%clk 0:03:03.6]}
8... Nc6 {[%clk 0:02:51.3]} 9. a3 {[%clk 0:03:04.3]} 9... Bf5 {[%clk 0:02:51.4]}
10. Nc3 {[%clk 0:03:04.7]} 10... Qc8 {[%clk 0:02:47.8]} 11. Re1 {[%clk
0:03:01.4]} 11... Bh3 {[%clk 0:02:48.4]} 12. Bh1 {[%clk 0:03:02.2]} 12... Qf5
{[%clk 0:02:36.9]} 13. Nh4 {[%clk 0:02:57.8]} 13... Qd7 {[%clk 0:02:34.8]} 14.
Qb3 {[%clk 0:02:48]} 14... Rfd8 {[%clk 0:02:23.5]} 15. Bd2 {[%clk 0:02:42.6]}
15... Na5 {[%clk 0:02:18.9]} 16. Qc2 {[%clk 0:02:39.4]} 16... Rac8 {[%clk
0:02:16.5]} 17. Nf3 {[%clk 0:02:27.3]} 17... Bf5 {[%clk 0:02:06.6]} 18. Qd1
{[%clk 0:02:15.5]} 18... Nc4 {[%clk 0:02:05.3]} 19. Ne5 {[%clk 0:02:14.7]} 19...
Qd6 {[%clk 0:01:36.4]} 20. Nxc4 {[%clk 0:02:10.4]} 20... Rxc4 {[%clk 0:01:35.4]}
21. Rc1 {[%clk 0:01:40.3]} 21... Rdc8 {[%clk 0:01:31.9]} 22. Qe2 {[%clk
0:01:36.2]} 22... a6 {[%clk 0:01:13]} 23. Bf3 {[%clk 0:01:28.4]} 23... b5 {[%clk
0:01:11.2]} 24. g4 {[%clk 0:01:24.3]} 24... Bd7 {[%clk 0:01:04.5]} 25. g5 {[%clk
0:01:24.6]} 25... Be6 {[%clk 0:01:06.4]} 26. gxf6 {[%clk 0:01:24.4]} 26... exf6
{[%clk 0:00:59.9]} 27. Bg2 {[%clk 0:01:14.6]} 27... f5 {[%clk 0:00:57.3]} 28. f4
{[%clk 0:01:12.5]} 28... h5 {[%clk 0:00:54]} 29. h4 {[%clk 0:01:09.8]} 29... Qe7
{[%clk 0:00:54]} 30. Qf2 {[%clk 0:01:10.5]} 30... Qd8 {[%clk 0:00:52.4]} 31. Qf3
{[%clk 0:01:08]} 31... b4 {[%clk 0:00:48]} 32. Nxd5 {[%clk 0:01:04.7]} 32...
Rxc1 {[%clk 0:00:42.8]} 33. Rxc1 {[%clk 0:01:02.5]} 33... Rxc1+ {[%clk
0:00:42.5]} 34. Bxc1 {[%clk 0:01:03.2]} 34... bxa3 {[%clk 0:00:36.8]} 35. bxa3
{[%clk 0:00:57.5]} 35... Bf8 {[%clk 0:00:36.3]} 36. Nb4 {[%clk 0:00:46.2]} 36...
a5 {[%clk 0:00:36.3]} 37. Nc6 {[%clk 0:00:46.5]} 37... Qb6 {[%clk 0:00:34.7]}
38. d5 {[%clk 0:00:39]} 38... Bd7 {[%clk 0:00:35.1]} 39. Qd1 {[%clk 0:00:33.1]}
39... Bxa3 {[%clk 0:00:30.3]} 40. Bxa3 {[%clk 0:00:32.8]} 40... Qxe3+ {[%clk
0:00:31]} 41. Kh1 {[%clk 0:00:30.8]} 41... Qxa3 {[%clk 0:00:31.6]} 42. Ne5
{[%clk 0:00:25.8]} 42... Qd6 {[%clk 0:00:23.9]} 43. Nxd7 {[%clk 0:00:25.7]}
43... Qxd7 {[%clk 0:00:24.6]} 44. d6 {[%clk 0:00:22.6]} 44... a4 {[%clk
0:00:25.5]} 45. Qa1 {[%clk 0:00:20.6]} 45... Qxd6 {[%clk 0:00:17.3]} 46. Qxa4
{[%clk 0:00:21.1]} 46... Kg7 {[%clk 0:00:15.2]} 47. Qa1+ {[%clk 0:00:20.9]}
47... Kh7 {[%clk 0:00:14.5]} 48. Qe5 {[%clk 0:00:22.4]} 48... Qd1+ {[%clk
0:00:13.7]} 49. Kh2 {[%clk 0:00:23.6]} 49... Qg4 {[%clk 0:00:13.9]} 50. Qf6
{[%clk 0:00:23.3]} 50... Qxf4+ {[%clk 0:00:14.4]} 51. Kh1 {[%clk 0:00:24.3]}
51... Qc7 {[%clk 0:00:13.1]} 52. Qg5 {[%clk 0:00:19.6]} 52... Kg7 {[%clk
0:00:10.4]} 53. Qf4 {[%clk 0:00:15.9]} 53... Qxf4 {[%clk 0:00:10.1]} 0-1